bitfinex/quotes_SOLUSD_20250216
["timestamp","ask_amount","ask_price","bid_price","bid_amount"]
[1739696854336,0.063,193.04,193.03,16.18857832]
[1739696854744,0.063,193.04,193.03,21.36907832]
[1739696855323,0.063,193.08,193.05,35.41184853]
[1739696855507,0.063,193.08,193.05,36.18841204]
[1739696856642,0.063,193.08,193.05,41.36841204]
[1739696858236,0.063,193.08,193.05,33.41184853]
[1739696858441,0.063,193.08,193.03,216.8]
[1739696858442,0.063,193.08,193.03,221.9802]
[1739696858607,0.063,193.08,193.05,20.0]
[1739696860046,0.063,193.08,193.05,25.18]
[1739696861134,0.063,193.08,193.05,39.59184853]
[1739696862609,0.063,193.08,193.05,38.59184853]
[1739696863341,0.063,193.08,193.05,39.59184853]
[1739696865148,0.063,193.08,193.05,121.89184853]
[1739696865733,0.063,193.08,193.05,120.89184853]
[1739696866424,0.063,193.08,193.05,121.89184853]
[1739696866626,0.063,193.08,193.05,120.89184853]
[1739696868259,0.063,193.08,193.05,119.89184853]
[1739696873256,0.063,193.08,193.05,99.89184853]
[1739696875643,0.063,193.08,193.05,101.89184853]
[1739696875962,0.0001,193.06,193.05,238.16843254]
[1739696876165,0.0001,193.06,193.05,237.39184853]
[1739696879761,0.0001,193.06,193.05,101.89184853]
[1739696879959,0.0001,193.06,193.05,102.66836352]
[1739696880160,0.0001,193.08,193.07,2.0]
[1739696880362,0.0001,193.08,193.07,16.18832331]
[1739696882340,0.0001,193.08,193.07,21.36772331]
[1739696882945,0.0001,193.08,193.07,238.16772331]
[1739696883247,0.0001,193.08,193.07,237.39124853]
[1739696884337,0.0001,193.08,193.07,236.39124853]
[1739696884555,0.0001,193.08,193.07,237.39124853]
[1739696886466,0.0001,193.08,193.07,236.39124853]
[1739696886637,0.0001,193.08,193.07,235.39124853]
[1739696887039,0.0001,193.08,193.07,236.39124853]
[1739696887253,0.0001,193.08,193.07,235.39124853]
[1739696888144,0.0001,193.08,193.07,236.39124853]
[1739696888467,0.0001,193.08,193.07,237.39124853]
[1739696888967,0.0001,193.08,193.07,101.89124853]
[1739696889740,0.0001,193.08,193.07,99.89124853]
[1739696890045,0.0001,193.08,193.05,5.18]
[1739696890865,0.0001,193.08,193.07,20.0]
[1739696892552,0.0001,193.08,193.07,25.1794]
[1739696893073,0.0001,193.08,193.07,20.0]
[1739696901278,0.0001,193.08,193.05,0.063]
[1739696905687,0.0001,193.08,193.05,13.47484853]
[1739696907285,0.0001,193.08,193.06,5.1797]
[1739696917207,0.0001,193.08,193.06,5.2427]
[1739696924919,0.0001,193.08,193.06,0.063]
[1739696949928,5.1793,193.08,193.06,0.063]
[1739696950810,82.1,193.07,193.06,0.063]
[1739696952742,25.1794,193.07,193.06,0.063]
[1739696952955,25.1794,193.07,193.06,0.0001]
[1739696954042,55.1794,193.07,193.06,0.0001]
[1739696955330,25.1794,193.07,193.06,0.0001]
[1739696958550,55.1794,193.07,193.06,0.0001]
[1739696964748,55.2424,193.07,193.06,0.0001]
[1739696974753,55.2424,193.07,193.05,0.0001]
[1739696974953,13.41184853,193.06,193.04,0.0001]
[1739696975156,14.41184853,193.06,193.04,0.0001]
[1739696975350,15.41184853,193.06,193.04,0.0001]
[1739696975557,14.41184853,193.05,193.04,0.0001]
[1739696975877,57.17515887,193.05,193.04,0.0001]
[1739696976944,62.35515887,193.05,193.04,0.0001]
[1739696979148,61.35515887,193.05,193.04,0.0001]
[1739696981269,62.35515887,193.05,193.04,0.0001]
[1739696981959,61.35515887,193.05,193.04,0.0001]
[1739696982465,62.35515887,193.05,193.04,0.0001]
[1739696983275,1.0,193.0,192.98,0.0001]
[1739696983454,43.41184853,192.99,192.98,0.0001]
[1739696983654,44.41184853,192.99,192.98,0.0001]
[1739696984771,49.59344853,192.99,192.98,0.0001]
[1739696989577,20.0,192.96,192.94,0.063]
[1739696989874,50.0,192.96,192.94,0.063]
[1739696990980,55.1824,192.96,192.94,0.063]
[1739696993159,25.1824,192.96,192.94,0.063]
[1739696996083,55.1824,192.96,192.94,0.063]
[1739696999286,56.1824,192.96,192.94,0.0001]
[1739696999459,30.0,192.95,192.94,0.0001]
[1739697001179,43.41184853,192.95,192.94,0.0001]
[1739697001386,49.59444853,192.95,192.94,0.0001]
[1739697002281,48.59444853,192.95,192.94,0.0001]
[1739697002489,49.59444853,192.95,192.94,0.0001]
[1739697004086,48.59444853,192.95,192.94,0.0001]
[1739697004291,35.1826,192.95,192.94,0.0001]
[1739697006197,5.1826,192.95,192.94,0.0001]
[1739697007804,20.0,192.96,192.94,0.0001]
[1739697010002,5.1826,192.95,192.94,0.0001]
[1739697010188,82.1,192.98,192.94,0.0001]
[1739697010379,5.1821,192.97,192.94,0.0001]
[1739697010904,0.063,192.95,192.94,0.0001]
[1739697013410,5.2456,192.95,192.94,0.0001]
[1739697013600,87.3456,192.95,192.94,0.0001]
[1739697015302,82.163,192.95,192.94,0.0001]
[1739697017893,87.3456,192.95,192.94,0.0001]
[1739697020393,95.60128727,192.95,192.94,0.0001]
[1739697020707,13.50128727,192.95,192.94,0.0001]
[1739697020895,43.50128727,192.95,192.94,0.0001]
[1739697022101,56.9131358,192.95,192.94,0.0001]
[1739697023313,57.9131358,192.95,192.94,0.0001]
[1739697023520,1.0,192.92,192.86,0.063]
[1739697023721,8.25568727,192.88,192.86,0.063]
[1739697023903,13.44018727,192.88,192.86,0.063]
[1739697025220,43.44018727,192.88,192.86,0.063]
[1739697026619,56.8520358,192.88,192.86,0.063]
[1739697026812,8.25568727,192.87,192.86,0.063]
[1739697026992,38.25568727,192.87,192.86,0.063]
[1739697027193,38.25568727,192.87,192.85,0.03]
[1739697027394,8.25568727,192.86,192.85,0.03]
[1739697028005,38.25568727,192.86,192.85,0.03]
[1739697028809,43.44078727,192.86,192.85,0.03]
[1739697031524,43.44078727,192.86,192.85,0.03]
[1739697032894,35.1851,192.86,192.85,0.03]
[1739697033723,20.0,192.86,192.85,0.03]
[1739697033928,8.25568727,192.92,192.85,8.28568727]
[1739697034235,82.1,192.91,192.87,8.25568727]
[1739697034613,87.2838,192.91,192.87,8.25568727]
[1739697035327,87.2838,192.91,192.88,8.25568727]
[1739697035713,87.2838,192.91,192.87,8.25568727]
[1739697036113,87.2838,192.91,192.86,8.25568727]
[1739697038501,87.2838,192.91,192.85,14.37908727]
[1739697038707,8.25568727,192.9,192.85,6.1234]
[1739697039635,95.53948727,192.91,192.85,6.1234]
[1739697041231,95.53948727,192.91,192.87,8.25568727]
[1739697041232,87.2838,192.91,192.87,8.25568727]
[1739697042333,87.2838,192.91,192.86,8.25568727]
[1739697045029,87.3468,192.91,192.86,8.25568727]
[1739697056039,87.3468,192.91,192.85,8.28568727]
[1739697056247,95.60248727,192.91,192.85,0.03]
[1739697056544,87.3468,192.91,192.86,0.03]
[1739697059634,100.3062,192.91,192.86,0.03]
[1739697061141,82.1,192.9,192.86,0.03]
[1739697061445,5.1843,192.89,192.86,0.03]
[1739697065743,82.1,192.9,192.88,8.25568727]
[1739697066251,82.1,192.9,192.87,8.25568727]
[1739697066252,87.284,192.9,192.87,8.25568727]
[1739697066821,87.284,192.9,192.86,8.28568727]
[1739697067261,87.284,192.9,192.86,0.03]
[1739697070966,108.49968727,192.9,192.86,0.03]
[1739697071166,8.25568727,192.89,192.86,0.03]
[1739697072674,87.2845,192.88,192.86,0.03]
[1739697073358,95.54018727,192.88,192.86,0.03]
[1739697074071,8.25568727,192.87,192.86,0.03]
[1739697076183,43.44048727,192.87,192.86,0.03]
[1739697077485,43.44048727,192.87,192.86,0.0001]
[1739697077869,20.0,192.85,192.84,0.03]
[1739697078186,63.44098727,192.85,192.84,0.03]
[1739697080661,55.1853,192.85,192.84,0.03]
[1739697081483,63.44098727,192.85,192.84,0.03]
[1739697081658,76.40438727,192.85,192.78,0.03]
[1739697081859,8.25568727,192.84,192.78,0.03]
[1739697082161,68.1487,192.85,192.78,0.03]
[1739697082162,8.25568727,192.83,192.78,0.03]
[1739697082683,76.40438727,192.85,192.78,0.03]
[1739697084083,5.1859,192.83,192.78,0.03]
[1739697086667,5.1859,192.83,192.78,8.28568727]
[1739697087888,87.2859,192.83,192.78,8.28568727]
[1739697088367,87.2859,192.83,192.78,0.03]
[1739697088989,95.54158727,192.83,192.78,0.03]
[1739697090567,87.2859,192.83,192.78,0.03]
[1739697091188,87.2859,192.83,192.78,8.28568727]
[1739697095273,87.2859,192.83,192.79,8.25568727]
[1739697099003,5.1854,192.85,192.82,8.25568727]
[1739697099796,0.063,192.86,192.82,8.25568727]
[1739697102495,0.063,192.86,192.84,8.25568727]
[1739697102706,0.063,192.86,192.85,8.25568727]
[1739697103602,0.063,192.86,192.84,8.25568727]
[1739697103794,0.063,192.86,192.83,8.25568727]
[1739697106317,0.063,192.86,192.84,8.25568727]
[1739697106490,0.063,192.86,192.85,8.25568727]
[1739697112121,0.063,192.86,192.85,13.44098727]
[1739697114317,0.063,192.86,192.85,26.8528358]
[1739697115738,0.063,192.86,192.85,27.8528358]
[1739697115911,0.063,192.86,192.85,26.8528358]
[1739697117528,0.063,192.91,192.86,14.41184853]
[1739697117745,0.063,192.91,192.9,8.25568727]
[1739697118937,5.1818,192.98,192.9,13.43968727]
[1739697119135,5.1818,192.98,192.92,8.25568727]
[1739697119749,8.25568727,192.95,192.88,8.25568727]
[1739697120541,8.25568727,192.96,192.89,8.25568727]
[1739697121341,5.1826,192.95,192.89,8.25568727]
[1739697121521,5.1826,192.95,192.9,8.25568727]
[1739697123323,5.1824,192.96,192.89,8.25568727]
[1739697123523,87.2824,192.96,192.89,8.25568727]
[1739697125348,95.53808727,192.96,192.89,8.25568727]
[1739697125549,87.2824,192.96,192.89,8.25568727]
[1739697128355,87.2824,192.96,192.89,8.28568727]
[1739697128649,87.3454,192.96,192.89,8.28568727]
[1739697129152,95.60108727,192.96,192.89,8.28568727]
[1739697129326,95.60108727,192.96,192.91,8.25568727]
[1739697129327,87.3454,192.96,192.91,8.25568727]
[1739697132552,87.3454,192.96,192.9,8.25568727]
[1739697133047,95.60108727,192.96,192.89,8.28568727]
[1739697146862,95.60108727,192.96,192.89,0.03]
[1739697155077,90.35568727,192.95,192.89,0.03]
[1739697155257,8.25568727,192.93,192.89,0.03]
[1739697157277,5.1834,192.92,192.89,0.03]
[1739697158572,13.43858727,192.94,192.89,0.03]
[1739697159854,26.39588727,192.94,192.89,0.03]
[1739697160563,5.1829,192.94,192.89,8.28568727]
[1739697160761,5.1827,192.95,192.92,8.25568727]
[1739697162289,0.063,192.96,192.91,8.25568727]
[1739697163460,5.2454,192.96,192.91,8.25568727]
[1739697169794,5.2454,192.96,192.9,8.25568727]
[1739697173793,8.25568727,192.92,192.89,0.03]
[1739697175583,5.1837,192.91,192.89,0.03]
[1739697178568,5.1834,192.92,192.89,0.03]
[1739697184502,8.25568727,192.91,192.89,0.03]
[1739697185091,28.25568727,192.9,192.89,0.03]
[1739697185711,33.43968727,192.9,192.89,0.03]
[1739697194599,33.43968727,192.9,192.89,0.0001]
[1739697195130,46.8515358,192.9,192.89,0.0001]
[1739697195297,48.4808358,192.9,192.89,0.0001]
[1739697195498,78.4808358,192.9,192.89,0.0001]
[1739697195701,79.4808358,192.9,192.89,0.0001]
[1739697195902,20.0,192.86,192.78,0.03]
[1739697196121,8.25568727,192.81,192.78,0.03]
[1739697196637,8.25568727,192.8,192.78,0.03]
[1739697197012,5.1869,192.79,192.78,0.03]
[1739697197539,13.44228727,192.81,192.78,0.03]
[1739697199435,13.44178727,192.83,192.78,0.03]
[1739697200334,8.25568727,192.83,192.78,0.03]
[1739697201530,90.35568727,192.84,192.78,0.03]
[1739697201833,82.1,192.84,192.79,8.25568727]
[1739697203235,82.1,192.84,192.79,13.44258727]
[1739697205132,13.44008727,192.89,192.82,8.25568727]
[1739697205513,8.25568727,192.88,192.81,8.25568727]
[1739697206335,8.25568727,192.88,192.81,13.44188727]
[1739697207347,13.44028727,192.88,192.81,8.25568727]
[1739697207628,8.25568727,192.87,192.8,8.25568727]
[1739697208634,13.44078727,192.86,192.79,9.88958727]
[1739697210043,8.25568727,192.85,192.79,1.6339]
[1739697210248,8.25568727,192.85,192.78,8.28568727]
[1739697210541,90.35568727,192.84,192.78,0.03]
[1739697210748,8.25568727,192.82,192.79,0.03]
[1739697211044,8.25568727,192.81,192.79,0.03]
[1739697213350,5.1867,192.8,192.79,0.03]
[1739697214640,5.1864,192.82,192.79,0.03]
[1739697214849,5.1859,192.83,192.79,0.03]
[1739697216543,13.44158727,192.83,192.79,0.03]
[1739697218046,5.1859,192.83,192.79,0.03]
[1739697218755,13.44158727,192.83,192.79,0.03]
[1739697221225,8.25568727,192.82,192.79,0.03]
[1739697221557,90.35568727,192.82,192.79,0.03]
[1739697221755,5.1864,192.81,192.79,0.03]
[1739697224355,87.2862,192.82,192.79,0.03]
[1739697227536,5.1862,192.82,192.79,0.03]
[1739697231546,13.44188727,192.82,192.79,0.03]
[1739697236158,13.44158727,192.83,192.79,0.03]
[1739697246182,8.25568727,192.81,192.79,0.03]
[1739697246381,28.25568727,192.8,192.79,0.03]
[1739697246884,28.25568727,192.8,192.78,0.03]
[1739697247179,90.35568727,192.79,192.78,0.0001]
[1739697247953,120.35568727,192.79,192.78,0.0001]
[1739697248367,125.54258727,192.79,192.78,0.0001]
[1739697250553,117.2869,192.79,192.78,0.0001]
[1739697251374,87.2869,192.79,192.78,0.0001]
[1739697252380,95.54258727,192.79,192.78,0.0001]
[1739697253062,13.44258727,192.79,192.78,0.0001]
[1739697254596,43.44258727,192.79,192.78,0.0001]
[1739697254975,35.1869,192.79,192.78,0.0001]
[1739697255399,43.44258727,192.79,192.78,0.0001]
[1739697255694,35.1869,192.79,192.78,0.0001]
[1739697256068,30.0,192.79,192.78,0.0001]
[1739697256379,12.9647,192.83,192.78,0.0001]
[1739697256380,5.1867,192.8,192.78,0.0001]
[1739697257291,5.1861,192.82,192.78,0.0001]
[1739697259179,8.31868727,192.84,192.78,0.0001]
[1739697259386,5.1859,192.83,192.78,0.0001]
[1739697260199,5.1859,192.83,192.78,8.25578727]
[1739697261506,5.2486,192.84,192.78,8.25578727]
[1739697261669,0.063,192.84,192.8,8.25568727]
[1739697261990,0.063,192.84,192.81,8.25568727]
[1739697262602,0.063,192.84,192.83,8.25568727]
[1739697263504,0.063,192.84,192.83,13.44158727]
[1739697264307,0.063,192.84,192.83,8.25568727]
[1739697266610,0.063,192.84,192.82,8.25568727]
[1739697266813,0.063,192.84,192.81,8.25568727]
[1739697267916,0.063,192.84,192.82,8.25568727]
[1739697269088,0.063,192.84,192.83,8.25568727]
[1739697270512,0.063,192.84,192.82,8.25568727]
[1739697271814,0.063,192.84,192.81,8.25568727]
[1739697272108,0.063,192.84,192.8,8.25568727]
[1739697273890,0.063,192.84,192.79,8.28568727]
[1739697276413,0.063,192.84,192.8,8.25568727]
[1739697277713,0.063,192.84,192.81,8.25568727]
[1739697278014,0.063,192.84,192.83,8.25568727]
[1739697281713,0.063,192.84,192.82,8.25568727]
[1739697281928,0.063,192.84,192.81,8.25568727]
[1739697282597,0.063,192.84,192.8,8.25568727]
[1739697283199,0.063,192.84,192.79,0.03]
[1739697284910,5.2486,192.84,192.79,0.03]
[1739697287219,5.2486,192.84,192.79,8.28568727]
[1739697292319,5.2486,192.84,192.8,8.25568727]
[1739697294014,5.2486,192.84,192.79,8.28568727]
[1739697295135,5.2486,192.84,192.8,8.25568727]
[1739697296530,5.2486,192.84,192.79,8.28568727]
[1739697296697,5.2486,192.84,192.79,0.03]
[1739697297712,13.50428727,192.84,192.79,0.03]
[1739697298935,5.2486,192.84,192.79,0.03]
[1739697299130,5.2486,192.84,192.79,8.28568727]
[1739697299431,0.063,192.84,192.8,8.25568727]
[1739697299735,5.2487,192.84,192.79,8.28568727]
[1739697300841,13.50438727,192.84,192.79,0.03]
[1739697301543,8.25568727,192.83,192.79,0.03]
[1739697301837,8.25568727,192.82,192.79,0.03]
[1739697302255,8.25568727,192.8,192.79,0.03]
[1739697302749,13.44238727,192.8,192.79,0.03]
[1739697304230,43.44238727,192.8,192.79,0.03]
[1739697307053,90.35568727,192.79,192.78,0.0001]
[1739697307221,120.35568727,192.79,192.78,0.0001]
[1739697307617,125.54258727,192.79,192.78,0.0001]
[1739697307943,138.9544358,192.79,192.78,0.0001]
[1739697310745,56.8544358,192.79,192.78,0.0001]
[1739697312753,43.44258727,192.79,192.78,0.0001]
[1739697314345,35.1869,192.79,192.78,0.0001]
[1739697314852,13.44258727,192.79,192.78,0.0001]
[1739697320747,43.44258727,192.79,192.78,0.0001]
[1739697322867,13.44258727,192.79,192.78,0.0001]
[1739697325666,43.44258727,192.79,192.78,0.0001]
[1739697326865,43.50558727,192.79,192.78,0.0001]
[1739697328866,56.9174358,192.79,192.78,0.0001]
[1739697335368,56.9174358,192.79,192.7,0.03]
[1739697335369,20.0,192.75,192.7,0.03]
[1739697335674,8.25568727,192.71,192.7,0.03]
[1739697335852,13.41184853,192.7,192.66,0.03]
[1739697336054,8.25568727,192.67,192.66,0.03]
[1739697336866,13.44588727,192.67,192.66,0.03]
[1739697337264,8.25568727,192.68,192.66,0.03]
[1739697338872,8.25568727,192.67,192.66,0.03]
[1739697340479,12.9715,192.73,192.66,0.03]
[1739697340480,8.25568727,192.68,192.66,0.03]
[1739697341577,28.25568727,192.67,192.66,0.03]
[1739697344486,20.0,192.67,192.66,0.03]
[1739697344985,95.54538727,192.69,192.66,0.03]
[1739697346076,82.1,192.69,192.66,0.03]
[1739697347381,13.44448727,192.72,192.66,0.03]
[1739697347782,8.25568727,192.71,192.66,0.03]
[1739697348685,13.44448727,192.72,192.66,0.03]
[1739697349764,5.1894,192.7,192.66,0.03]
[1739697350076,8.25568727,192.71,192.66,0.03]
[1739697350272,13.44488727,192.71,192.66,0.03]
[1739697351165,5.1892,192.71,192.66,0.03]
[1739697352062,13.44488727,192.71,192.66,0.03]
[1739697353889,8.25568727,192.69,192.66,0.03]
[1739697355284,13.44548727,192.69,192.66,0.03]
[1739697356395,8.25568727,192.71,192.66,0.03]
[1739697358389,82.1,192.7,192.66,0.03]
[1739697359093,87.2895,192.7,192.66,0.03]
[1739697361287,82.1,192.7,192.66,0.03]
[1739697362297,13.44368727,192.75,192.67,8.25568727]
[1739697362472,8.25568727,192.74,192.67,8.25568727]
[1739697362793,0.063,192.7,192.67,8.25568727]
[1739697365392,0.063,192.7,192.66,0.03]
[1739697366683,0.063,192.7,192.66,8.28568727]
[1739697366970,0.063,192.7,192.68,8.25568727]
[1739697367386,0.063,192.7,192.69,8.25568727]
[1739697367803,0.063,192.7,192.69,9.91298727]
[1739697368894,0.063,192.7,192.69,35.8778358]
[1739697372587,0.063,192.7,192.69,36.8778358]
[1739697374385,0.063,192.7,192.69,34.8778358]
[1739697377495,0.063,192.7,192.68,8.25568727]
[1739697377705,0.063,192.7,192.66,0.03]
[1739697379007,8.31868727,192.7,192.66,0.03]
[1739697379589,5.2526,192.7,192.66,0.03]
[1739697380614,8.31868727,192.7,192.66,0.03]
[1739697382208,13.50818727,192.7,192.66,0.03]
[1739697382387,8.25568727,192.69,192.66,0.03]
[1739697383293,13.50818727,192.7,192.66,0.03]
[1739697384212,8.25568727,192.69,192.66,0.03]
[1739697385312,5.1899,192.68,192.66,0.03]
[1739697386309,13.44558727,192.68,192.66,0.03]
[1739697387690,8.25568727,192.67,192.66,0.03]
[1739697389711,13.44588727,192.67,192.66,0.03]
[1739697390311,43.44588727,192.67,192.66,0.03]
[1739697392199,30.0,192.67,192.66,0.03]
[1739697392399,82.1,192.69,192.66,0.03]
[1739697392608,87.2897,192.69,192.66,0.03]
[1739697394098,8.25568727,192.67,192.66,0.03]
[1739697395318,13.44588727,192.67,192.66,0.03]
[1739697395924,43.44588727,192.67,192.66,0.03]
[1739697399315,13.44588727,192.67,192.66,0.03]
[1739697400796,13.44588727,192.67,192.66,0.0001]
[1739697401005,20.0,192.64,192.59,0.03]
[1739697401198,8.25568727,192.6,192.59,0.03]
[1739697401604,8.25568727,192.61,192.59,0.03]
[1739697401804,8.25568727,192.62,192.59,0.03]
[1739697402635,8.25568727,192.61,192.59,0.03]
[1739697402836,13.44758727,192.61,192.59,0.03]
[1739697403323,5.1915,192.63,192.59,0.03]
[1739697403923,13.44718727,192.63,192.59,0.03]
[1739697404109,8.25568727,192.62,192.59,0.03]
[1739697405320,8.25568727,192.64,192.59,0.03]
[1739697405523,5.191,192.65,192.59,8.28568727]
[1739697405735,8.25568727,192.66,192.59,8.28568727]
[1739697406435,8.25568727,192.65,192.59,0.03]
[1739697406841,8.25568727,192.64,192.59,0.03]
[1739697407133,8.25568727,192.65,192.59,0.03]
[1739697407335,13.44608727,192.66,192.59,0.03]
[1739697407532,8.25568727,192.65,192.59,0.03]
[1739697407932,5.1904,192.66,192.59,0.03]
[1739697407933,8.25568727,192.64,192.59,0.03]
[1739697408405,8.25568727,192.63,192.59,0.03]
[1739697408751,90.35568727,192.63,192.59,0.03]
[1739697409042,87.2914,192.63,192.59,0.03]
[1739697410440,95.54708727,192.63,192.59,0.03]
[1739697410737,87.2914,192.63,192.59,0.03]
[1739697414421,8.25568727,192.62,192.59,0.03]
[1739697414622,5.1918,192.61,192.59,0.03]
[1739697415740,5.1915,192.62,192.59,0.03]
[1739697416128,82.1,192.63,192.59,0.03]
[1739697416557,87.2913,192.63,192.59,0.03]
[1739697420261,5.1908,192.65,192.59,0.03]
[1739697420438,5.1908,192.65,192.6,8.25568727]
[1739697420638,87.2904,192.67,192.61,8.25568727]
[1739697421349,5.2529,192.69,192.63,8.25568727]
[1739697421529,0.063,192.65,192.63,8.25568727]
[1739697422456,0.063,192.65,192.64,8.25568727]
[1739697422973,0.063,192.65,192.59,0.03]
[1739697422974,8.31868727,192.65,192.59,0.03]
[1739697424558,5.191,192.64,192.59,0.03]
[1739697425327,13.44668727,192.64,192.59,0.03]
[1739697425548,8.25568727,192.62,192.59,0.03]
[1739697425864,8.25568727,192.61,192.59,0.03]
[1739697426037,90.35568727,192.63,192.59,0.03]
[1739697426242,82.1,192.63,192.59,0.03]
[1739697426934,8.31868727,192.65,192.61,8.25568727]
[1739697426935,0.063,192.65,192.61,8.25568727]
[1739697427734,0.063,192.65,192.6,8.25568727]
[1739697428352,0.063,192.65,192.61,8.25568727]
[1739697428549,0.063,192.65,192.62,8.25568727]
[1739697428933,0.063,192.65,192.61,8.25568727]
[1739697430361,0.063,192.65,192.6,8.25568727]
[1739697430664,8.31868727,192.65,192.59,0.03]
[1739697432155,5.191,192.64,192.59,0.03]
[1739697434237,13.44668727,192.64,192.59,0.03]
[1739697435371,8.25568727,192.63,192.59,0.03]
[1739697436362,5.191,192.64,192.59,0.03]
[1739697436363,5.1915,192.62,192.59,0.03]
[1739697438452,8.25568727,192.64,192.59,0.03]
[1739697438681,8.25568727,192.63,192.59,0.03]
[1739697439869,8.25568727,192.62,192.59,0.03]
[1739697440038,8.25568727,192.61,192.59,0.03]
[1739697440546,13.44778727,192.6,192.59,0.03]
[1739697444871,43.44778727,192.6,192.59,0.03]
[1739697449688,13.44778727,192.6,192.59,0.03]
[1739697453281,43.44778727,192.6,192.59,0.03]
[1739697461871,13.44778727,192.6,192.59,0.03]
[1739697462573,13.44778727,192.6,192.59,0.0001]
[1739697462763,43.44778727,192.6,192.58,0.0001]
[1739697463081,8.25568727,192.59,192.58,0.0001]
[1739697463270,13.44798727,192.59,192.58,0.0001]
[1739697464191,26.8598358,192.59,192.58,0.0001]
[1739697464365,56.8598358,192.59,192.58,0.0001]
[1739697467093,57.8598358,192.59,192.58,0.0001]
[1739697468284,56.8598358,192.59,192.58,0.0001]
[1739697472191,57.8598358,192.59,192.58,0.0001]
[1739697472489,56.8598358,192.59,192.58,0.0001]
[1739697473487,20.0,192.56,192.5,28.02798863]
[1739697473719,8.25568727,192.51,192.5,28.02798863]
[1739697474698,13.45018727,192.51,192.5,28.02798863]
[1739697474876,5.1945,192.51,192.5,28.02798863]
[1739697476276,13.45018727,192.51,192.5,28.02798863]
[1739697476795,43.45018727,192.51,192.5,28.02798863]
[1739697477201,125.55018727,192.51,192.5,28.02798863]
[1739697478599,117.2945,192.51,192.5,28.02798863]
[1739697479396,117.2945,192.51,192.5,28.05798863]
[1739697480206,125.55018727,192.51,192.5,28.05798863]
[1739697480705,117.2945,192.51,192.5,28.05798863]
[1739697481189,87.2945,192.51,192.5,28.05798863]
[1739697482228,95.55018727,192.51,192.5,28.05798863]
[1739697482590,125.55018727,192.51,192.5,28.05798863]
[1739697483112,35.1945,192.51,192.5,28.05798863]
[1739697483499,5.1945,192.51,192.5,28.05798863]
[1739697485302,13.45018727,192.51,192.5,28.05798863]
[1739697486420,43.45018727,192.51,192.5,28.05798863]
[1739697486713,43.45018727,192.51,192.5,0.59728863]
[1739697486929,43.45018727,192.51,192.5,8.863e-05]
[1739697494113,35.1945,192.51,192.5,8.863e-05]
[1739697494323,43.45018727,192.51,192.5,8.863e-05]
[1739697495917,56.8620358,192.51,192.5,8.863e-05]
[1739697497529,26.8620358,192.51,192.5,8.863e-05]
[1739697498427,27.8620358,192.51,192.5,8.863e-05]
[1739697498817,20.0,192.47,192.46,0.03]
[1739697499120,28.25568727,192.47,192.46,0.03]
[1739697499632,33.45128727,192.47,192.46,0.03]
[1739697500420,63.45128727,192.47,192.46,0.03]
[1739697502235,63.45128727,192.47,192.28,14.31878727]
[1739697502236,20.0,192.39,192.28,14.31878727]
[1739697502536,8.25568727,192.35,192.28,14.31878727]
[1739697503438,8.25568727,192.33,192.26,9.84888727]
[1739697503836,13.45488727,192.34,192.27,8.25568727]
[1739697504034,13.45448727,192.35,192.28,8.25568727]
[1739697504339,8.25568727,192.34,192.27,8.25568727]
[1739697504713,8.25568727,192.33,192.26,9.84888727]
[1739697505139,8.25568727,192.34,192.27,8.25568727]
[1739697505514,13.45448727,192.35,192.28,8.25568727]
[1739697505744,8.25568727,192.34,192.27,8.25568727]
[1739697505946,8.25568727,192.33,192.26,9.84888727]
[1739697506446,8.25568727,192.34,192.27,8.25568727]
[1739697506827,8.25568727,192.34,192.26,9.84888727]